Cogmind - Beta 14 @@@ ROGUE MODE // 2024.08.09 @ 17:16:42 Player: Sgt. SmokeWeed Result: Self-destructed Performance ------------- Evolutions (0) 0 Regions Visited (4) 800 Robots Destroyed (15) 75 Value Destroyed (260) 260 Prototype IDs (23) 460 Alien Tech Used (0) 0 Bonus (300) 300 TOTAL SCORE: 1895 Bonus ------- Aligned with FarCom 300 Cogmind --------- Core Integrity 181/250 Matter 295/300 Energy 100/100 System Corruption 2% Temperature Cool (12) Movement Treading (160) Location -9/Mines Parts ------- > --- POWER (1) -------- (None) > --- PROPULSION (2) --- Light Treads Light Treads > --- UTILITY (2) ------ (None) > --- WEAPON (2) ------- Guided Plasma Cannon > --- INVENTORY (5) ---- Grenade Launcher Peak State ------------ > --- POWER ------------ Ion Engine > --- PROPULSION ------- Light Treads Light Treads > --- UTILITY ---------- Improved Heat Sink > --- WEAPON ----------- Guided Plasma Cannon Grenade Launcher > --- INVENTORY -------- Grenade Launcher [Rating: 15] Favorites ----------- Power Ion Engine Engine Ion Engine Propulsion Light Treads Treads Light Treads Utility Improved Heat Sink Device Improved Heat Sink Weapon Grenade Launcher Energy Gun Medium Laser Energy Cannon Guided Plasma Cannon Launcher Grenade Launcher Build | -11 -10 -10 -10 -9 ------- Run | Yrd Mat Min Exi Min Slots Evolved . | . . . . . Power . | . . . . . Propulsion . | . . . . . Utility . | . . . . . Weapon . | . . . . . Parts Attached 12 | 5 4 2 1 . Power 1 | 1 . . . . Engine 1 | 1 . . . . Core . | . . . . . Reactor . | . . . . . Propulsion 2 | 2 . . . . Treads 2 | 2 . . . . Leg . | . . . . . Wheel . | . . . . . Hover . | . . . . . Flight . | . . . . . Utility 3 | . 2 1 . . Device 3 | . 2 1 . . Storage . | . . . . . Processor . | . . . . . Hackware . | . . . . . Protection . | . . . . . Artifact . | . . . . . Weapon 6 | 2 2 1 1 . Energy Gun 2 | 2 . . . . Energy Cannon 1 | . . . 1 . Ballistic Gun . | . . . . . Ballistic Cannon . | . . . . . Launcher 3 | . 2 1 . . Special Weapon . | . . . . . Impact Weapon . | . . . . . Slashing Weapon . | . . . . . Piercing Weapon . | . . . . . Special Melee Weapon . | . . . . . Unidentified Prototypes . | . . . . . Parts Lost 3 | . . . . 3 Power 1 | . . . . 1 Propulsion . | . . . . . Utility 1 | . . . . 1 Weapon 1 | . . . . 1 Highest Loss Streak 3 | . . . . 3 To Critical Strikes . | . . . . . Average Slot Usage (%) 83 | . 77 85 85 85 Engine 14 | . 14 14 14 14 Treads 28 | . 28 28 28 28 Device 12 | . 6 14 14 14 Energy Gun 12 | . 15 14 7 . Energy Cannon 2 | . . . 6 14 Launcher 13 | . 12 14 14 14 Peak Build Rating 15 | 5 8 9 15 15 Average Rating 8 | 3 5 7 11 13 On Entrance 6 | . 5 6 8 15 Naked Turns . | . . . . . Heaviest Build 19 | 8 13 11 19 19 Greatest Support 40 | 40 40 40 40 40 Greatest Overweight (x) . | . . . . . Average Overweight (x) . | . . . . . Largest Inventory Capacity 5 | 5 5 5 5 5 Average Capacity 5 | 5 5 5 5 5 Most Carried 1 | . . 1 1 1 Average Carried . | . . . 1 1 Final Capacity 5 | 5 5 5 5 5 Final Carried 1 | . . 1 1 1 Class Distribution -------------------- 100% | Mutant Dominant Class ---------------- Mutant | -10/Materials Mutant | -10/Mines Mutant | -10/Exiles Mutant | -9/Mines Resources | -11 -10 -10 -10 -9 ----------- Run | Yrd Mat Min Exi Min Matter Collected 365 | 196 74 95 . . Remotely . | . . . . . Salvage Created 243 | . 130 100 . 13 Parts 22 | . 10 12 . . Haulers Intercepted . | . . . . . Recyclers Shooed . | . . . . . Parts Field Recycled . | . . . . . Retrieved Matter . | . . . . . Parts Self-Destructed . | . . . . . Prevented . | . . . . . Kills | -11 -10 -10 -10 -9 ------- Run | Yrd Mat Min Exi Min Combat Hostiles Destroyed 16 | . 5 9 . 2 Guns 6 | . 4 2 . . AOE 10 | . 1 7 . 2 Classes Destroyed 4 | . 3 . . 1 Worker 1 | . 1 . . . Swarmer 10 | . 3 7 . . Grunt 4 | . 2 2 . . Assembled 2 | . . . . 2 Best Kill Streak 6 | . 6 3 . 2 Combat Bots Only 5 | . 5 3 . 2 Max Kills in Single Turn 2 | . 1 2 . 2 Gunslinging . | . . . . . Exploded 2 | . 1 2 . 2 Melee . | . . . . . Uniques/NPCs Destroyed . | . . . . . Combat | -11 -10 -10 -10 -9 -------- Run | Yrd Mat Min Exi Min Hostile Shots Fired 62 | . 24 12 . 26 Missed 15 | . 3 2 . 10 Damage Taken 536 | . 199 121 . 216 Core 69 | . 30 13 . 26 Absorbed by Shields . | . . . . . Core Remaining (%) 100 | 100 . . . . Volleys Fired 35 | . 22 12 . 1 Largest 2 | . 2 2 . 1 Hottest 80 | . 80 80 . 30 Shots Fired 41 | . 23 17 . 1 Gun 34 | . 22 12 . . Cannon . | . . . . . Launcher 7 | . 1 5 . 1 Special . | . . . . . Kinetic . | . . . . . Thermal 34 | . 22 12 . . Explosive 7 | . 1 5 . 1 Electromagnetic . | . . . . . Robot Hit Streak 10 | . 10 2 . . Robot Miss Streak 4 | . 4 3 . 1 Penetration Max . | . . . . . Secondary Targets . | . . . . . Shots Hit Robots 21 | . 14 7 . . Core Hits 24 | . 8 10 . 6 Critical Kills . | . . . . . Critical Parts Destroyed . | . . . . . Critical Strikes 2 | . 2 . . . Burn 2 | . 2 . . . Melee Attacks . | . . . . . Impact . | . . . . . Slashing . | . . . . . Piercing . | . . . . . Sneak Attacks . | . . . . . Combat Hostiles . | . . . . . Follow-up Attacks . | . . . . . Damage Inflicted 917 | . 293 428 . 196 Guns 289 | . 226 63 . . Cannons . | . . . . . Explosions 616 | . 67 353 . 196 Melee . | . . . . . Ramming 12 | . . 12 . . Kinetic . | . . . . . Thermal 289 | . 226 63 . . Explosive 616 | . 67 353 . 196 Electromagnetic . | . . . . . Impact . | . . . . . Slashing . | . . . . . Piercing . | . . . . . Highest Corruption 2 | . . . . 2 Average Corruption 2 | . . . . 2 Corruption Purged . | . . . . . Corruption Blocked . | . . . . . Effects 1 | . . . . 1 Message Errors 1 | . . . . 1 Overload Shots . | . . . . . Overflow Damage 26 | . . 26 . . Projectiles . | . . . . . Explosions 26 | . . 26 . . Melee . | . . . . . Knockbacks . | . . . . . Impact . | . . . . . Kinetic . | . . . . . Secondary . | . . . . . Self-Inflicted Damage 62 | . . 46 . 16 Shots 3 | . . 2 . 1 Rammed 2 | . . 2 . . Targets Rammed 2 | . . 2 . . Kicked . | . . . . . Crushed . | . . . . . Highest Temperature 288 | . 288 5 . 12 Average Temperature 138 | . 147 3 . 7 Received Heat Transfer 159 | . 78 9 . 72 Siege Activations . | . . . . . Robots Corrupted . | . . . . . Combat Hostiles . | . . . . . Parts Fried . | . . . . . Impact Corruptions . | . . . . . Robots Melted . | . . . . . Combat Hostiles . | . . . . . Parts Melted 2 | . 2 . . . Heat Transferred 999 | . 814 185 . . Parts Sabotaged . | . . . . . Parts Stolen . | . . . . . Parts Stripped . | . . . . . Power Chain Reactions . | . . . . . Alert | -11 -10 -10 -10 -9 ------- Run | Yrd Mat Min Exi Min Peak Influence 357 | . 128 357 . . Initial 49 | . . 49 . . Average 157 | . 77 200 . . Maximum Alert Level 1 | . . 1 . . Low Security (%) 63 | 100 100 49 . 100 Level 1 36 | . . 50 . . Level 2 . | . . . . . Level 3 . | . . . . . Level 4 . | . . . . . Level 5 . | . . . . . High Security . | . . . . . Max Security . | . . . . . Squads Dispatched . | . . . . . Investigation . | . . . . . Extermination . | . . . . . Reinforcement . | . . . . . Assault . | . . . . . Garrison . | . . . . . Intercept . | . . . . . Searches Triggered . | . . . . . Construction Impeded . | . . . . . Haulers Reinforced . | . . . . . Active Scanning Responses . | . . . . . Cargo Convoy Interrupts . | . . . . . Stealth | -11 -10 -10 -10 -9 --------- Run | Yrd Mat Min Exi Min Distress Signals . | . . . . . Communications Jammed . | . . . . . Distress Signals . | . . . . . Times Spotted 36 | . 6 8 . 22 Peak Tracking Total 22 | . 4 3 . 22 Tactical Retreats 2 | . . 2 . . Traps | -11 -10 -10 -10 -9 ------- Run | Yrd Mat Min Exi Min Traps Triggered 1 | . 1 . . . Indirectly . | . . . . . Trap Hack Attempts . | . . . . . Triggered . | . . . . . Disarmed . | . . . . . Reprogrammed . | . . . . . Reused . | . . . . . Traps Extracted . | . . . . . Installed . | . . . . . Triggered . | . . . . . Machines | -11 -10 -10 -10 -9 ---------- Run | Yrd Mat Min Exi Min Machines Disabled 1 | . . 1 . . Max in Single Turn 1 | . . 1 . . Machines Repaired . | . . . . . Machines Dismantled . | . . . . . Machines Sabotaged . | . . . . . Overloaded Fab Kills . | . . . . . Hacking | -11 -10 -10 -10 -9 --------- Run | Yrd Mat Min Exi Min Machines Accessed 2 | . 1 . 1 . Terminals 1 | . 1 . . . Fabricators . | . . . . . Repair Stations . | . . . . . Recycling Units . | . . . . . Scanalyzers . | . . . . . Garrison Access . | . . . . . Total Hacks 3 | . 2 . 1 . Successful 2 | . 1 . 1 . Failed 1 | . 1 . . . Catastrophic . | . . . . . Database Lockouts . | . . . . . Manual 3 | . 2 . 1 . Terminals 2 | . 2 . . . Fabricators . | . . . . . Repair Stations . | . . . . . Recycling Units . | . . . . . Scanalyzers . | . . . . . Garrison Access . | . . . . . Terminal Hacks 2 | . 1 . 1 . Branch Access Points 1 | . 1 . . . Derelict Proto ID Bank 1 | . . . 1 . Fabricator Hacks . | . . . . . Repair Station Hacks . | . . . . . Recycling Unit Hacks . | . . . . . Scanalyzer . | . . . . . Garrison Access Hacks . | . . . . . Unauthorized Hacks . | . . . . . Terminals . | . . . . . Fabricators . | . . . . . Repair Stations . | . . . . . Recycling Units . | . . . . . Scanalyzers . | . . . . . Garrison Access . | . . . . . Data Cores Recovered . | . . . . . Used . | . . . . . Hacking Detections 1 | . 1 . . . Full Trace Events . | . . . . . Feedback Events . | . . . . . Feedback Blocked . | . . . . . Robot Schematics Acquired . | . . . . . Robots Built . | . . . . . Authchips . | . . . . . Time . | . . . . . Total Robot Build Rating . | . . . . . Part Schematics Acquired . | . . . . . Parts Built . | . . . . . Authchips . | . . . . . Time . | . . . . . Total Part Build Rating . | . . . . . Parts Repaired . | . . . . . Time . | . . . . . Parts Recycled . | . . . . . Recycled Matter . | . . . . . Retrieved Matter . | . . . . . Retrieved Components . | . . . . . Parts Scanalyzed . | . . . . . Part Schematics Acquired . | . . . . . Parts Damaged . | . . . . . Bothacking | -11 -10 -10 -10 -9 ------------ Run | Yrd Mat Min Exi Min Used RIF Installer . | . . . . . Robots Hacked . | . . . . . Non-combat . | . . . . . Combat . | . . . . . Robot Hacks Applied . | . . . . . Relay Couplers Released . | . . . . . Fabnet Peak Effective % . | . . . . . Robots Rewired . | . . . . . Allies Hacked . | . . . . . Hacks Repelled . | . . . . . Allies | -11 -10 -10 -10 -9 -------- Run | Yrd Mat Min Exi Min Total Allies . | . . . . . Largest Group . | . . . . . Highest-Rated Group . | . . . . . Highest-Rated Ally . | . . . . . Total Orders . | . . . . . Ally Attacks . | . . . . . Total Damage . | . . . . . Kills . | . . . . . Allies Corrupted . | . . . . . Allies Melted . | . . . . . Intel | -11 -10 -10 -10 -9 ------- Run | Yrd Mat Min Exi Min Robot Analysis Total . | . . . . . Derelict Logs Recovered 1 | . . 1 . . Drone Launches . | . . . . . Drone Recoveries . | . . . . . Exploration | -11 -10 -10 -10 -9 ------------- Run | Yrd Mat Min Exi Min Turns Passed 1122 | 67 155 554 342 4 Spaces Moved 636 | 39 61 322 213 1 Core 2 | 2 . . . . Treads 634 | 37 61 322 213 1 Legs . | . . . . . Wheels . | . . . . . Hover . | . . . . . Flight . | . . . . . Fastest Speed 50 | 50 160 160 160 160 Average Speed 159 | 154 160 160 160 160 Slowest Speed 160 | 160 160 160 160 160 Overloaded Moves . | . . . . . Propulsion Burnouts . | . . . . . Robots Hopped . | . . . . . Cave-ins Triggered . | . . . . . Exploration Rate (%) 33 | 3 17 79 60 9 Regions Visited 4 Branch Regions 3 Pre-discovered Areas . | . . . . . Known Exits Taken 1 | . 1 . . . Unknown Exits Taken 3 | 1 . 1 1 . Scrap Searched 1 | . . 1 . . Spaces Dug . | . . . . . Terrain Destroyed 39 | . 5 28 . 6 Melee . | . . . . . Projectile . | . . . . . AOE 39 | . 5 28 . 6 Terrain Rammed . | . . . . . Walls Destroyed . | . . . . . Machines Disabled . | . . . . . Actions | -11 -10 -10 -10 -9 --------- Run | Yrd Mat Min Exi Min Total 696 | 43 95 342 214 2 Wait 11 | . 7 4 . . Move 632 | 38 60 321 212 1 Hop . | . . . . . Pick Up . | . . . . . Fast Attach 11 | 5 4 1 1 . Attach . | . . . . . Detach . | . . . . . Swap 1 | . . 1 . . Drop 4 | . 2 1 1 . Fire 35 | . 22 12 . 1 Melee . | . . . . . Ram . | . . . . . Kick . | . . . . . Crush 2 | . . 2 . . Escape Stasis . | . . . . . Rewire . | . . . . . Trap . | . . . . . Miscellaneous . | . . . . . Route ------- -11/Scrapyard -10/Materials (discovered 2 exits: *Min x2) -10/Mines (discovered 2 exits: [*Mat] / *Exi) -10/Exiles -9/Mines History --------- Turn | Location | Event 18 | -11/Scrapyard | Discovered new exit (range 15) 68 | -11/Scrapyard | Entered Materials 83 | -10/Materials | Identified exit to Mines 223 | -10/Materials | Entered Mines 265 | -10/Mines | YI-UF0 nonchalantly dropped a Grenade Launcher on the ground 301 | -10/Mines | Build established: Mutant 319 | -10/Mines | Found a hidden stash of uninstalled traps 363 | -10/Mines | Discovered new exit (range 3) 557 | -10/Mines | Learned Materials terminal intel 769 | -10/Mines | Deemed a non-threat by the Exiles lab entrance 770 | -10/Mines | Discovered new exit (range 5) 777 | -10/Mines | Entered Exiles 817 | -10/Exiles | Met 8R-AWN 843 | -10/Exiles | Met EX-HEX 891 | -10/Exiles | Met EX-BIN 910 | -10/Exiles | Aligned with FarCom system 912 | -10/Exiles | Given EX-Vault access code 949 | -10/Exiles | Opened EX-Vault 956 | -10/Exiles | Found Gui. Plasma Cannon 989 | -10/Exiles | Warned to stay clear of 0b10 Research branches 1043 | -10/Exiles | Met EX-DEC 1098 | -10/Exiles | Discovered new exit (range 14) 1119 | -10/Exiles | Left Exiles lab with Gui. Plasma Cannon 1119 | -10/Exiles | Entered Mines 1120 | -9/Mines | Assembled infested the area 1123 | -9/Mines | Self-destructed Last Messages --------------- EX-BIN: And don't even think about spreading that code around. We're gonna change it right after you leave. Most certainly not to something like 1234 which I did last time as a little joke and some thief managed to sneak in here and steal a few of HEX's prototypes. EX-DEC: Ah I see we have a visitor. One wrong move in here and I'll invert your atomic chain! EX-DEC: "Oops, I hope HEX didn't hear that..." EXIT=FOUND LOCATION=UNKNOWN GOAL=ESCAPE Receiving FarCom transmissions... ALERT: Infestation in the mines, dispatching Demolisher response squad. Ion Engine destroyed. as-92223 destroyed. as-57303 destroyed. Grenade Launcher destroyed. Imp. Heat Sink destroyed. System corrupted by crushing effect (+2). 1,I:VYVA< 9 2G%F1OHUERAO2QHXK|NCF& G-34 Mercenary destroyed. Map ----- +----------------------------------------------------+ | ???????????????????????????????? | | ???????????????????????????????? | | ???????????????????????????????? | | ???????????????????????????????? | | ???????????????????????????????? | | ???????????????????????????????? | | ???????????????????????????????? | | ???????????????????????????????? | | ???????????????????????????????? | | ???????????????????????????????? | | ??????####?????????????????????? | | ????## ????????????????????? | | ???## ????????????????????? | | ??## ##???????????????????? | | ??# #####???????????????? | | ??# a ##??????????????? | | ??# ##?????????????? | | ??? a